fUSD/lending_fUSD_20250223
["ID","MTS","AMOUNT","RATE_DAILY","PERIOD"]
[354191216,1740341460744,-1834.31,0.00016438,2]
[354191217,1740341460753,-500.0,0.00016438,2]
[354191218,1740341460762,-500.0,0.00016438,2]
[354191219,1740341460771,-151.0,0.00016438,2]
[354191220,1740341460780,-151.0,0.00016438,2]
[354191221,1740341460789,-500.0,0.00016438,2]
[354191222,1740341460798,-904.02,0.00016438,2]
[354191223,1740341460807,-276.915137,0.00016438,2]
[354191224,1740341460816,-561.07,0.00016438,2]
[354191225,1740341460825,-500.0,0.00016438,2]
[354191226,1740341460834,-2138.36,0.00016438,2]
[354191227,1740341460843,-892.36,0.00016438,2]
[354191228,1740341460852,-500.0,0.00016438,2]
[354191229,1740341460861,-500.0,0.00016438,2]
[354191230,1740341460870,-500.0,0.00016438,2]
[354191231,1740341460879,-500.0,0.00016438,2]
[354191232,1740341460887,-4515.34,0.00016438,2]
[354191233,1740341460897,-501.96881745,0.00016438,2]
[354191234,1740341460906,-500.0,0.00016438,2]
[354191235,1740341460914,-500.0,0.00016438,2]
[354191236,1740341460923,-500.0,0.00016438,2]
[354191237,1740341460932,-500.0,0.00016438,2]
[354191238,1740341460942,-500.0,0.00016438,2]
[354191239,1740341460950,-500.0,0.00016438,2]
[354191240,1740341460959,-500.0,0.00016438,2]
[354191241,1740341460968,-1014.09,0.00016438,2]
[354191242,1740341460977,-500.0,0.00016438,2]
[354191243,1740341460986,-151.0,0.00016438,2]
[354191244,1740341460995,-500.0,0.00016438,2]
[354191245,1740341461005,-500.0,0.00016438,2]
[354191246,1740341461014,-500.0,0.00016438,2]
[354191247,1740341461024,-151.0,0.00016438,2]
[354191248,1740341461033,-500.0,0.00016438,2]
[354191249,1740341461042,-546.13,0.00016438,2]
[354191250,1740341461051,-500.0,0.00016438,2]
[354191251,1740341461060,-151.0,0.00016438,2]
[354191252,1740341461069,-2349.18,0.00016438,2]
[354191253,1740341461078,-500.0,0.00016438,2]
[354191254,1740341461087,-500.0,0.00016438,2]
[354191255,1740341461096,-500.0,0.00016438,2]
[354191256,1740341461106,-151.0,0.00016438,2]
[354191257,1740341461115,-500.0,0.00016438,2]
[354191258,1740341461124,-500.0,0.00016438,2]
[354191259,1740341461133,-500.0,0.00016438,2]
[354191260,1740341461141,-500.0,0.00016438,2]
[354191261,1740341461150,-500.0,0.00016438,2]
[354191262,1740341461159,-151.0,0.00016438,2]
[354191263,1740341461168,-500.0,0.00016438,2]
[354191264,1740341461177,-500.0,0.00016438,2]
[354191265,1740341461187,-500.0,0.00016438,2]
[354191266,1740341461195,-500.0,0.00016438,2]
[354191267,1740341461204,-569.35,0.00016438,2]
[354191268,1740341461213,-516.93,0.00016438,2]
[354191269,1740341461222,-1395.62,0.00016438,2]
[354191270,1740341461231,-5417.78,0.00016438,2]
[354191271,1740341461240,-683.03,0.00016438,2]
[354191272,1740341461249,-681.25,0.00016438,2]
[354191273,1740341461258,-500.0,0.00016438,2]
[354191274,1740341461267,-500.0,0.00016438,2]
[354191275,1740341461275,-500.0,0.00016438,2]
[354191276,1740341461285,-909.48,0.00016438,2]
[354191277,1740341461294,-617.01,0.00016438,2]
[354191278,1740341461304,-520.83,0.00016438,2]
[354191279,1740341461314,-527.43,0.00016438,2]
[354191280,1740341461326,-1529.37,0.00016438,2]
[354191281,1740341461335,-500.0,0.00016438,2]
[354191282,1740341461346,-385.38738836,0.00016438,2]
[354191283,1740341461356,-3890.5,0.00016438,2]
[354191284,1740341461366,-500.0,0.00016438,2]
[354191285,1740341461376,-3270.23,0.00016438,2]
[354191286,1740341461387,-1277.86,0.00016438,2]
[354191287,1740341461397,-500.0,0.00016438,2]
[354191288,1740341461408,-500.0,0.00016438,2]
[354191289,1740341461419,-939.91,0.00016438,2]
[354191290,1740341461427,-500.0,0.00016438,2]
[354191291,1740341461437,-512.01739576,0.00016438,2]
[354191292,1740341461446,-521.3,0.00016438,2]
[354191293,1740341461455,-500.0,0.00016438,2]
[354191294,1740341461464,-652.18,0.00016438,2]
[354191295,1740341461472,-500.0,0.00016438,2]
[354191296,1740341461482,-2253.32,0.00016438,2]
[354191297,1740341461490,-958.4,0.00016438,2]
[354191298,1740341461499,-894.23,0.00016438,2]
[354191299,1740341461508,-500.0,0.00016438,2]
[354191300,1740341461518,-500.0,0.00016438,2]
[354191301,1740341461528,-1341.09,0.00016438,2]
[354191302,1740341461537,-534.63,0.00016438,2]
[354191303,1740341461546,-500.0,0.00016438,2]
[354191304,1740341461555,-500.0,0.00016438,2]
[354191305,1740341461564,-1590.86,0.00016438,2]
[354191306,1740341461575,-1521.44,0.00016438,2]
[354191307,1740341461584,-562.93,0.00016438,2]
[354191308,1740341461593,-500.0,0.00016438,2]
[354191309,1740341461603,-620.89,0.00016438,2]
[354191310,1740341461613,-500.0,0.00016438,2]
[354191311,1740341461622,-500.0,0.00016438,2]
[354191312,1740341461630,-500.0,0.00016438,2]
[354191313,1740341461639,-500.0,0.00016438,2]
[354191314,1740341461650,-751.1,0.00016438,2]
[354191315,1740341461660,-535.69654043,0.00016438,2]
[354191316,1740341461669,-500.0,0.00016438,2]
[354191317,1740341461678,-500.0,0.00016438,2]
[354191318,1740341461687,-500.0,0.00016438,2]
[354191319,1740341461695,-500.0,0.00016438,2]
[354191320,1740341461705,-500.0,0.00016438,2]
[354191321,1740341461714,-6772.8,0.00016438,2]
[354191322,1740341461723,-1009.65,0.00016438,2]
[354191323,1740341461732,-500.0,0.00016438,2]
[354191324,1740341461741,-500.0,0.00016438,2]
[354191325,1740341461749,-500.0,0.00016438,2]
[354191326,1740341461758,-500.0,0.00016438,2]
[354191327,1740341461767,-500.0,0.00016438,2]
[354191328,1740341461776,-1094.07,0.00016438,2]
[354191329,1740341461785,-524.06,0.00016438,2]
[354191330,1740341461795,-757.86,0.00016438,2]
[354191331,1740341461803,-500.0,0.00016438,2]
[354191332,1740341461812,-500.0,0.00016438,2]
[354191333,1740341461821,-1923.0,0.00016438,2]
[354191334,1740341461830,-2963.57,0.00016438,2]
[354191335,1740341461839,-500.0,0.00016438,2]
[354191336,1740341461848,-500.0,0.00016438,2]
[354191337,1740341461857,-500.0,0.00016438,2]
[354191338,1740341461865,-500.0,0.00016438,2]
[354191339,1740341461874,-1071.86,0.00016438,2]
[354191340,1740341461883,-637.26,0.00016438,2]
[354191341,1740341461892,-500.0,0.00016438,2]
[354191342,1740341461900,-565.64,0.00016438,2]
[354191343,1740341461910,-500.0,0.00016438,2]
[354191344,1740341461920,-500.0,0.00016438,2]
[354191345,1740341461931,-1638.96,0.00016438,2]
[354191346,1740341461942,-1380.7,0.00016438,2]
[354191347,1740341461952,-1682.61,0.00016438,2]
[354191348,1740341461960,-500.0,0.00016438,2]
[354191349,1740341461970,-500.0,0.00016438,2]
[354191350,1740341461979,-4232.69,0.00016438,2]
[354191351,1740341461988,-500.0,0.00016438,2]
[354191352,1740341461997,-500.0,0.00016438,2]
[354191353,1740341462006,-1739.49,0.00016438,2]
[354191354,1740341462014,-500.0,0.00016438,2]
[354191355,1740341462023,-588.05,0.00016438,2]
[354191356,1740341462032,-1950.72,0.00016438,2]
[354191357,1740341462041,-500.0,0.00016438,2]
[354191358,1740341462050,-500.0,0.00016438,2]
[354191359,1740341462059,-6752.04,0.00016438,2]
[354191360,1740341462068,-6752.04,0.00016438,2]
[354191361,1740341462078,-6752.04,0.00016438,2]
[354191362,1740341462088,-743.43,0.00016438,2]
[354191363,1740341462096,-6752.04,0.00016438,2]
[354191364,1740341462105,-6752.04,0.00016438,2]
[354191365,1740341462114,-6752.04,0.00016438,2]
[354191366,1740341462124,-535.86,0.00016438,2]
[354191367,1740341462134,-6752.04,0.00016438,2]
[354191368,1740341462146,-6752.04,0.00016438,2]
[354191369,1740341462156,-6752.04,0.00016438,2]
[354191370,1740341462166,-502.31,0.00016438,2]
[354191371,1740341462177,-6752.04,0.00016438,2]
[354191372,1740341462186,-500.0,0.00016438,2]
[354191373,1740341462195,-6752.04,0.00016438,2]
[354191374,1740341462204,-6752.04,0.00016438,2]
[354191375,1740341462213,-6752.04,0.00016438,2]
[354191376,1740341462223,-6752.04,0.00016438,2]
[354191377,1740341462233,-6752.04,0.00016438,2]
[354191378,1740341462243,-731.52,0.00016438,2]
[354191379,1740341462253,-6752.04,0.00016438,2]
[354191380,1740341462263,-6752.04,0.00016438,2]
[354191381,1740341462273,-6752.04,0.00016438,2]
[354191382,1740341462283,-500.0,0.00016438,2]
[354191383,1740341462293,-6752.04,0.00016438,2]
[354191384,1740341462302,-2064.38,0.00016438,2]
[354191385,1740341462311,-562.5,0.00016438,2]
[354191386,1740341462322,-500.0,0.00016438,2]
[354191387,1740341462331,-1426.1,0.00016438,2]
[354191388,1740341462340,-1421.28,0.00016438,2]
[354191389,1740341462348,-500.0,0.00016438,2]
[354191390,1740341462357,-500.0,0.00016438,2]
[354191391,1740341462366,-500.0,0.00016438,2]
[354191392,1740341462375,-500.0,0.00016438,2]
[354191393,1740341462386,-500.0,0.00016438,2]
[354191394,1740341462396,-500.0,0.00016438,2]
[354191395,1740341462405,-500.0,0.00016438,2]
[354191396,1740341462415,-500.0,0.00016438,2]
[354191397,1740341462424,-3342.1,0.00016438,2]
[354191398,1740341462434,-500.0,0.00016438,2]
[354191399,1740341462443,-1186.26,0.00016438,2]
[354191400,1740341462451,-500.0,0.00016438,2]
[354191401,1740341462461,-514.1,0.00016438,2]
[354191402,1740341462470,-500.0,0.00016438,2]
[354191403,1740341462480,-1169.42,0.00016438,2]
[354191404,1740341462490,-500.0,0.00016438,2]
[354191405,1740341462499,-500.0,0.00016438,2]
[354191406,1740341462508,-500.0,0.00016438,2]
[354191407,1740341462517,-2174.78,0.00016438,2]
[354191408,1740341462526,-150.08,0.00016438,2]
[354191409,1740341462536,-150.0,0.00016444,2]
[354191410,1740341462545,-504.30145883,0.00016455,2]
[354191411,1740341462555,-150.0,0.00016455,2]
[354191412,1740341462564,-699.0,0.00016455,2]
[354191413,1740341462576,-500.0,0.00016473,2]
[354191414,1740341462586,-238.00046306,0.00016483,2]
[354191415,1740341462595,-699.0,0.00016483,2]
[354191416,1740341462778,-685.49,0.00016499,2]
[354191417,1740341462788,-500.0,0.000165,2]
[354191418,1740341462797,-500.0,0.000165,2]
[354191419,1740341462807,-80912.4463808,0.000165,3]
[354191420,1740341462816,-151.0,0.000165,2]
[354191421,1740341462825,-443.551959,0.000165,2]
[354191422,1740341462835,-443.551959,0.000165,2]
[354191423,1740341462844,-172.517379,0.000165,2]
[354191424,1740341462853,-172.517379,0.000165,2]
[354191425,1740341462862,-151.807604,0.000165,2]
[354191426,1740341462872,-151.0,0.000165,2]
[354191427,1740341462882,-151.0,0.000165,2]
[354191428,1740341462890,-151.0,0.000165,2]
[354191429,1740341462899,-492.328666,0.000165,2]
[354191430,1740341462908,-492.328666,0.000165,2]
[354191431,1740341462917,-281.325639,0.000165,2]
[354191432,1740341462926,-281.325639,0.000165,2]
[354191433,1740341462935,-151.0,0.000165,2]
[354191434,1740341462944,-292.030853,0.000165,2]
[354191435,1740341462953,-292.030853,0.000165,2]
[354191436,1740341462962,-151.0,0.000165,2]
[354191437,1740341462971,-151.0,0.000165,2]
[354191438,1740341462980,-981.644609,0.000165,2]
[354191439,1740341462989,-981.644609,0.000165,2]
[354191440,1740341462998,-151.0,0.000165,2]
[354191441,1740341463007,-238.24925,0.000165,2]
[354191442,1740341463016,-2073.697885,0.000165,2]
[354191443,1740341463025,-151.0,0.000165,2]
[354191444,1740341463035,-151.0,0.00016509,2]
[354191445,1740341463044,-180.630837,0.00016509,2]
[354191446,1740341463054,-699.0,0.0001651,2]
[354191447,1740341463063,-1000.0,0.00016512,2]
[354191448,1740341463073,-151.0,0.00016518,2]
[354191449,1740341463082,-178.449762,0.00016518,2]
[354191450,1740341463092,-274.587633,0.00016518,2]
[354191451,1740341463101,-274.587633,0.00016518,2]
[354191452,1740341463111,-151.0,0.00016518,2]
[354191453,1740341463121,-850.422721,0.00016518,2]
[354191454,1740341463130,-850.422721,0.00016518,2]
[354191455,1740341463139,-151.0,0.00016518,2]
[354191456,1740341463149,-237.69462,0.00016518,2]
[354191457,1740341463158,-2275.84,0.00016518,2]
[354191458,1740341463168,-2275.84,0.00016518,2]
[354191459,1740341463177,-2275.84,0.00016518,2]
[354191460,1740341463187,-2275.84,0.00016518,2]
[354191461,1740341463196,-2275.84342562,0.00016518,2]
[354191462,1740341463205,-500.0,0.00016518,2]
[354191463,1740341463215,-500.0,0.00016518,2]
[354191464,1740341463224,-500.0,0.00016518,2]
[354191465,1740341463234,-568.70324089,0.00016518,2]
[354191466,1740341463243,-6752.04,0.00016518,2]
[354191467,1740341463252,-6752.04,0.00016518,2]
[354191468,1740341463261,-6752.04,0.00016518,2]
[354191469,1740341463271,-6752.04,0.00016518,2]
[354191470,1740341463280,-6752.05358291,0.00016518,2]
[354191471,1740341463290,-151.0,0.00016519,2]
[354191472,1740341463300,-151.0,0.00016519,2]
[354191473,1740341463309,-151.0,0.00016519,2]
[354191474,1740341463318,-151.0,0.00016519,2]
[354191475,1740341463327,-151.0,0.00016519,2]
[354191476,1740341463336,-426.64783,0.00016519,2]
[354191477,1740341463345,-426.64783,0.00016519,2]
[354191478,1740341463354,-151.0,0.00016519,2]
[354191479,1740341463363,-151.0,0.00016519,2]
[354191480,1740341463373,-500.0,0.00016519,2]
[354191481,1740341463382,-500.0,0.00016519,2]
[354191482,1740341463391,-451.53236909,0.00016519,2]
[354191483,1740341463401,-685.49,0.00016519,2]
[354191484,1740341463410,-685.49,0.00016519,2]
[354191485,1740341463419,-685.49,0.00016519,2]
[354191486,1740341463429,-685.49,0.00016519,2]
[354191487,1740341463438,-685.49,0.00016519,2]
[354191488,1740341463448,-685.7,0.00016519,2]
[354191489,1740341463458,-300.0,0.00016519,2]
[354191490,1740341463467,-219.89780956,0.00016519,2]
[354191491,1740341463477,-399.34,0.0001652,2]
[354191492,1740341463487,-151.0,0.0001652,2]
[354191493,1740341463497,-151.0,0.0001652,2]
[354191494,1740341463507,-361.87,0.0001652,2]
[354191495,1740341463516,-500.0,0.0001652,2]
[354191496,1740341463526,-500.0,0.0001652,2]
[354191497,1740341463536,-500.0,0.0001652,2]
[354191498,1740341463545,-500.0,0.0001652,2]
[354191499,1740341463555,-482.38,0.0001652,2]
[354191500,1740341463565,-151.0,0.0001652,2]
[354191501,1740341463577,-567.68,0.0001652,2]
[354191502,1740341463587,-151.0,0.0001652,2]
[354191503,1740341463597,-151.0,0.0001652,2]
[354191504,1740341463607,-151.0,0.0001652,2]
[354191505,1740341463617,-234.444537,0.0001652,2]
[354191506,1740341463627,-151.0,0.0001652,2]
[354191507,1740341463636,-151.0,0.0001652,2]
[354191508,1740341463645,-151.0,0.0001652,2]
[354191509,1740341463655,-151.0,0.0001652,2]
[354191510,1740341463665,-151.0,0.0001652,2]
[354191511,1740341463674,-151.0,0.0001652,2]
[354191512,1740341463683,-151.0,0.0001652,2]
[354191513,1740341463693,-151.0,0.0001652,2]
[354191514,1740341463702,-151.0,0.0001652,2]
[354191515,1740341463712,-151.0,0.0001652,2]
[354191516,1740341463721,-151.0,0.0001652,2]
[354191517,1740341463730,-151.0,0.0001652,2]
[354191518,1740341463740,-487.485137,0.0001652,2]
[354191519,1740341463749,-487.485137,0.0001652,2]
[354191520,1740341463759,-487.485137,0.0001652,2]
[354191521,1740341463768,-151.0,0.0001652,2]
[354191522,1740341463777,-151.0,0.0001652,2]
[354191523,1740341463787,-151.0,0.0001652,2]
[354191524,1740341463796,-151.0,0.0001652,2]
[354191525,1740341463805,-151.0,0.0001652,2]
[354191526,1740341463815,-151.0,0.0001652,2]
[354191527,1740341463824,-151.0,0.0001652,2]
[354191528,1740341463833,-500.0,0.0001652,2]
[354191529,1740341463842,-151.0,0.0001652,2]
[354191530,1740341463851,-151.0,0.0001652,2]
[354191531,1740341463860,-151.0,0.0001652,2]
[354191532,1740341463869,-151.0,0.0001652,2]
[354191533,1740341463879,-151.0,0.0001652,2]
[354191534,1740341463887,-151.0,0.0001652,2]
[354191535,1740341463897,-151.0,0.0001652,2]
[354191536,1740341463906,-151.0,0.0001652,2]
[354191537,1740341463915,-151.0,0.0001652,2]
[354191538,1740341463924,-244.000285,0.0001652,2]
[354191539,1740341463933,-151.0,0.0001652,2]
[354191540,1740341463942,-151.0,0.0001652,2]
[354191541,1740341463951,-151.0,0.0001652,2]
[354191542,1740341463960,-239.640619,0.0001652,2]
[354191543,1740341463970,-239.640619,0.0001652,2]
[354191544,1740341463979,-239.640619,0.0001652,2]
[354191545,1740341463989,-239.640619,0.0001652,2]
[354191546,1740341463998,-239.640619,0.0001652,2]
[354191547,1740341464007,-426.64783,0.0001652,2]
[354191548,1740341464017,-426.64783,0.0001652,2]
[354191549,1740341464026,-426.64783,0.0001652,2]
[354191550,1740341464035,-426.64783,0.0001652,2]
[354191551,1740341464044,-426.64783,0.0001652,2]
[354191552,1740341464053,-426.64783,0.0001652,2]
[354191553,1740341464062,-151.0,0.0001652,2]
[354191554,1740341464071,-151.0,0.0001652,2]
[354191555,1740341464080,-151.0,0.0001652,2]
[354191556,1740341464089,-151.0,0.0001652,2]
[354191557,1740341464098,-151.0,0.0001652,2]
[354191558,1740341464107,-164.41053,0.0001652,2]
[354191559,1740341464116,-178.449762,0.0001652,2]
[354191560,1740341464126,-178.449762,0.0001652,2]
[354191561,1740341464135,-178.449762,0.0001652,2]
[354191562,1740341464144,-500.0,0.0001652,2]
[354191563,1740341464153,-151.0,0.0001652,2]
[354191564,1740341464162,-151.0,0.0001652,2]
[354191565,1740341464171,-151.0,0.0001652,2]
[354191566,1740341464180,-443.551959,0.0001652,2]
[354191567,1740341464190,-443.551959,0.0001652,2]
[354191568,1740341464199,-443.551959,0.0001652,2]
[354191569,1740341464208,-443.551959,0.0001652,2]
[354191570,1740341464218,-443.551959,0.0001652,2]
[354191571,1740341464227,-443.551959,0.0001652,2]
[354191572,1740341464236,-256.08829,0.0001652,2]
[354191573,1740341464245,-256.08829,0.0001652,2]
[354191574,1740341464254,-256.08829,0.0001652,2]
[354191575,1740341464263,-256.08829,0.0001652,2]
[354191576,1740341464272,-256.08829,0.0001652,2]
[354191577,1740341464281,-256.08829,0.0001652,2]
[354191578,1740341464290,-256.08829,0.0001652,2]
[354191579,1740341464299,-256.08829,0.0001652,2]
[354191580,1740341464308,-274.587633,0.0001652,2]
[354191581,1740341464318,-274.587633,0.0001652,2]
[354191582,1740341464328,-274.587633,0.0001652,2]
[354191583,1740341464338,-274.587633,0.0001652,2]
[354191584,1740341464347,-274.587633,0.0001652,2]
[354191585,1740341464357,-274.587633,0.0001652,2]
[354191586,1740341464366,-172.517379,0.0001652,2]
[354191587,1740341464375,-172.517379,0.0001652,2]
[354191588,1740341464385,-172.517379,0.0001652,2]
[354191589,1740341464394,-172.517379,0.0001652,2]
[354191590,1740341464404,-172.517379,0.0001652,2]
[354191591,1740341464413,-172.517379,0.0001652,2]
[354191592,1740341464422,-500.0,0.0001652,2]
[354191593,1740341464431,-505.41586927,0.0001652,2]
[354191594,1740341464441,-438.7361619,0.0001652,2]
[354191595,1740341464451,-500.0,0.0001652,2]
[354191596,1740341464460,-500.0,0.0001652,2]
[354191597,1740341464470,-500.0,0.0001652,2]
[354191598,1740341464480,-500.0,0.0001652,2]
[354191599,1740341464491,-500.0,0.0001652,2]
[354191600,1740341464500,-500.79937832,0.0001652,2]
[354191601,1740341464510,-500.0,0.0001652,2]
[354191602,1740341464519,-500.0,0.0001652,2]
[354191603,1740341464528,-357.94214107,0.0001652,2]
[354191604,1740341464537,-152.413491,0.0001652,2]
[354191605,1740341464546,-500.0,0.0001652,2]
[354191606,1740341464555,-151.0,0.0001652,2]
[354191607,1740341464564,-151.0,0.0001652,2]
[354191608,1740341464578,-151.0,0.0001652,2]
[354191609,1740341464587,-158.92208974,0.0001652,2]
[354191610,1740341464597,-151.0,0.0001652,2]
[354191611,1740341464606,-156.612478,0.0001652,2]
[354191612,1740341464617,-204.51902108,0.0001652,2]
[354191613,1740341464626,-501.9998096,0.0001652,2]
[354191614,1740341464635,-500.0,0.0001652,2]
[354191615,1740341464645,-500.0,0.0001652,2]
[354191616,1740341464654,-181.42906056,0.0001652,2]
[354191617,1740341464663,-500.0,0.0001652,2]
[354191618,1740341464672,-503.82322878,0.0001652,2]
[354191619,1740341464681,-492.328666,0.0001652,2]
[354191620,1740341464690,-492.328666,0.0001652,2]
[354191621,1740341464699,-492.328666,0.0001652,2]
[354191622,1740341464707,-492.328666,0.0001652,2]
[354191623,1740341464716,-492.328666,0.0001652,2]
[354191624,1740341464726,-492.328666,0.0001652,2]
[354191625,1740341464734,-500.0,0.0001652,2]
[354191626,1740341464744,-500.0,0.0001652,2]
[354191627,1740341464753,-281.325639,0.0001652,2]
[354191628,1740341464762,-281.325639,0.0001652,2]
[354191629,1740341464771,-281.325639,0.0001652,2]
[354191630,1740341464780,-281.325639,0.0001652,2]
[354191631,1740341464790,-285.16862027,0.0001652,2]
[354191632,1740341464798,-345.41536126,0.0001652,2]
[354191633,1740341464807,-281.325639,0.0001652,2]
[354191634,1740341464816,-281.325639,0.0001652,2]
[354191635,1740341464825,-281.325639,0.0001652,2]
[354191636,1740341464834,-500.0,0.0001652,2]
[354191637,1740341464843,-281.325638,0.0001652,2]
[354191638,1740341464852,-500.0,0.0001652,2]
[354191639,1740341464861,-500.0,0.0001652,2]
[354191640,1740341464869,-500.0,0.0001652,2]
[354191641,1740341464878,-172.662464,0.0001652,2]
[354191642,1740341464887,-500.0,0.0001652,2]
[354191643,1740341464897,-500.0,0.0001652,2]
[354191644,1740341464906,-500.0,0.0001652,2]
[354191645,1740341464914,-500.0,0.0001652,2]
[354191646,1740341464923,-502.08407669,0.0001652,2]
[354191647,1740341464932,-500.0,0.0001652,2]
[354191648,1740341464942,-500.0,0.0001652,2]
[354191649,1740341464951,-500.0,0.0001652,2]
[354191650,1740341464960,-500.0,0.0001652,2]
[354191651,1740341464970,-500.0,0.0001652,2]
[354191652,1740341464979,-500.0,0.0001652,2]
[354191653,1740341464988,-291.70620789,0.0001652,2]
[354191654,1740341464997,-500.0,0.0001652,2]
[354191655,1740341465006,-602.3,0.0001652,2]
[354191656,1740341465015,-500.0,0.0001652,2]
[354191657,1740341465024,-500.0,0.0001652,2]
[354191658,1740341465033,-500.0,0.0001652,2]
[354191659,1740341465042,-500.0,0.0001652,2]
[354191660,1740341465052,-151.0,0.0001652,2]
[354191661,1740341465061,-203.170433,0.0001652,2]
[354191662,1740341465071,-607.0,0.0001652,2]
[354191663,1740341465080,-500.0,0.0001652,2]
[354191664,1740341465090,-500.0,0.0001652,2]
[354191665,1740341465099,-500.0,0.0001652,2]
[354191666,1740341465108,-500.0,0.0001652,2]
[354191667,1740341465118,-500.0,0.0001652,2]
[354191668,1740341465128,-353.97689299,0.0001652,2]
[354191669,1740341465137,-500.0,0.0001652,2]
[354191670,1740341465146,-500.0,0.0001652,2]
[354191671,1740341465155,-686.75,0.0001652,2]
[354191672,1740341465164,-504.94,0.0001652,2]
[354191673,1740341465173,-500.0,0.0001652,2]
[354191674,1740341465183,-500.0,0.0001652,2]
[354191675,1740341465192,-500.0,0.0001652,2]
[354191676,1740341465201,-292.030853,0.0001652,2]
[354191677,1740341465210,-292.030853,0.0001652,2]
[354191678,1740341465220,-292.030853,0.0001652,2]
[354191679,1740341465229,-500.0,0.0001652,2]
[354191680,1740341465238,-500.0,0.0001652,2]
[354191681,1740341465247,-500.0,0.0001652,2]
[354191682,1740341465255,-500.0,0.0001652,2]
[354191683,1740341465264,-500.0,0.0001652,2]
[354191684,1740341465273,-500.0,0.0001652,2]
[354191685,1740341465282,-500.0,0.0001652,2]
[354191686,1740341465291,-500.0,0.0001652,2]
[354191687,1740341465302,-500.0,0.0001652,2]
[354191688,1740341465312,-500.0,0.0001652,2]
[354191689,1740341465321,-500.0,0.0001652,2]
[354191690,1740341465330,-504.32923348,0.0001652,2]
[354191691,1740341465339,-500.0,0.0001652,2]
[354191692,1740341465512,-679.36,0.0001652,2]
[354191693,1740341465521,-500.0,0.0001652,30]
[354191694,1740341465530,-500.0,0.0001652,2]
[354191695,1740341465539,-666.36,0.0001652,2]
[354191696,1740341465548,-500.0,0.0001652,2]
[354191697,1740341465557,-500.0,0.0001652,2]
[354191698,1740341465566,-659.64,0.0001652,2]
[354191699,1740341465580,-500.0,0.0001652,2]
[354191700,1740341465589,-292.030853,0.0001652,2]
[354191701,1740341465598,-292.030853,0.0001652,2]
[354191702,1740341465607,-500.0,0.0001652,2]
[354191703,1740341465617,-292.030853,0.0001652,2]
[354191704,1740341465626,-500.0,0.0001652,2]
[354191705,1740341465636,-500.0,0.0001652,2]
[354191706,1740341465644,-500.0,0.0001652,2]
[354191707,1740341465654,-704.83,0.0001652,2]
[354191708,1740341465663,-548.31,0.0001652,2]
[354191709,1740341465672,-500.0,0.0001652,2]
[354191710,1740341465681,-500.0,0.0001652,2]
[354191711,1740341465689,-500.0,0.0001652,2]
[354191712,1740341465699,-500.0,0.0001652,2]
[354191713,1740341465709,-500.0,0.0001652,2]
[354191714,1740341465718,-500.0,0.0001652,2]
[354191715,1740341465728,-500.0,0.0001652,2]